[Event "Betsys MČR v online bleskovém šachu 2021"]
[Site "Chess.com"]
[Date "2021.04.17"]
[Round "4"]
[White "JuliliaR"]
[Black "Danyjel"]
[Result "0-1"]
[WhiteElo "1318"]
[BlackElo "1713"]
[TimeControl "180+1"]
[EndTime "9:35:13 PDT"]
[Termination "Uživatel Danyjel zvítězil po vzdání soupeře"]

1. d4 {[%clk 0:03:00.9]} 1... Nf6 {[%clk 0:02:59.4]} 2. c4 {[%clk 0:03:00]} 2...
g6 {[%clk 0:02:57.2]} 3. Nc3 {[%clk 0:02:56]} 3... Bg7 {[%clk 0:02:57.2]} 4. Nf3
{[%clk 0:02:52.6]} 4... d5 {[%clk 0:02:54.2]} 5. cxd5 {[%clk 0:02:46.3]} 5...
Nxd5 {[%clk 0:02:53.6]} 6. e4 {[%clk 0:02:46]} 6... Nxc3 {[%clk 0:02:53.7]} 7.
bxc3 {[%clk 0:02:44.5]} 7... c5 {[%clk 0:02:53.7]} 8. Be3 {[%clk 0:02:43]} 8...
O-O {[%clk 0:02:51.9]} 9. Qd2 {[%clk 0:02:30.7]} 9... Qa5 {[%clk 0:02:47.8]} 10.
Rc1 {[%clk 0:02:21]} 10... Rd8 {[%clk 0:02:39.2]} 11. Be2 {[%clk 0:02:05.1]}
11... Nc6 {[%clk 0:02:27.8]} 12. O-O {[%clk 0:01:52.3]} 12... cxd4 {[%clk
0:02:18.2]} 13. cxd4 {[%clk 0:01:45.3]} 13... Qxd2 {[%clk 0:02:15]} 14. Nxd2
{[%clk 0:01:40.1]} 14... Nxd4 {[%clk 0:02:09.5]} 15. Bxd4 {[%clk 0:01:27.2]}
15... Bxd4 {[%clk 0:02:06.9]} 16. Nf3 {[%clk 0:01:25.5]} 16... Bb6 {[%clk
0:01:57.5]} 17. Rfd1 {[%clk 0:01:19.2]} 17... Bg4 {[%clk 0:01:56.7]} 18. Rxd8+
{[%clk 0:01:07.9]} 18... Rxd8 {[%clk 0:01:55.4]} 19. h3 {[%clk 0:01:03.8]} 19...
Bxf3 {[%clk 0:01:52.1]} 20. Bxf3 {[%clk 0:01:03.3]} 20... e5 {[%clk 0:01:51.6]}
21. Bg4 {[%clk 0:00:48.7]} 21... Rd2 {[%clk 0:01:49.7]} 22. Rf1 {[%clk
0:00:41.3]} 22... Rxa2 {[%clk 0:01:48.8]} 23. g3 {[%clk 0:00:35.7]} 23... Ra3
{[%clk 0:01:45.6]} 24. Kg2 {[%clk 0:00:31.4]} 24... Rd3 {[%clk 0:01:43.4]} 25.
Rc1 {[%clk 0:00:27.8]} 25... Rd2 {[%clk 0:01:41.6]} 26. Rf1 {[%clk 0:00:26.1]}
26... a5 {[%clk 0:01:40.9]} 27. Bd7 {[%clk 0:00:22.8]} 27... Rxd7 {[%clk
0:01:38.6]} 0-1

[Event "Betsys MČR v online bleskovém šachu 2021"]
[Site "Chess.com"]
[Date "2021.04.17"]
[Round "4"]
[White "Zelezny1984"]
[Black "MartinCerveny"]
[Result "0-1"]
[WhiteElo "2062"]
[BlackElo "2652"]
[TimeControl "180+1"]
[EndTime "9:35:14 PDT"]
[Termination "Uživatel MartinCerveny zvítězil po vzdání soupeře"]

1. e4 {[%clk 0:03:00.9]} 1... c5 {[%clk 0:02:58.7]} 2. Nc3 {[%clk 0:03:01.1]}
2... a6 {[%clk 0:02:58.1]} 3. g3 {[%clk 0:03:01.1]} 3... b5 {[%clk 0:02:57.6]}
4. Bg2 {[%clk 0:03:01.3]} 4... Bb7 {[%clk 0:02:58]} 5. Nge2 {[%clk 0:03:01]}
5... e6 {[%clk 0:02:58.1]} 6. O-O {[%clk 0:03:01.1]} 6... h5 {[%clk 0:02:58.2]}
7. h3 {[%clk 0:02:45.8]} 7... b4 {[%clk 0:02:56.3]} 8. Na4 {[%clk 0:02:42.8]}
8... Nc6 {[%clk 0:02:38.8]} 9. d4 {[%clk 0:02:36.1]} 9... cxd4 {[%clk
0:02:35.7]} 10. Nxd4 {[%clk 0:02:37]} 10... Qa5 {[%clk 0:02:26.2]} 11. c3 {[%clk
0:02:17.8]} 11... Nxd4 {[%clk 0:02:07.2]} 12. cxd4 {[%clk 0:02:18.7]} 12... Nf6
{[%clk 0:02:01.8]} 13. Re1 {[%clk 0:02:02.9]} 13... Be7 {[%clk 0:01:54.3]} 14.
Bd2 {[%clk 0:01:38]} 14... d5 {[%clk 0:01:05.2]} 15. f3 {[%clk 0:01:18.8]} 15...
dxe4 {[%clk 0:00:54.1]} 16. fxe4 {[%clk 0:01:19.7]} 16... Rd8 {[%clk 0:00:52.4]}
17. Bg5 {[%clk 0:00:57.4]} 17... Bc6 {[%clk 0:00:51.7]} 18. b3 {[%clk
0:00:56.8]} 18... Bxa4 {[%clk 0:00:51.1]} 19. bxa4 {[%clk 0:00:57.7]} 19... Qxg5
{[%clk 0:00:46.5]} 0-1

[Event "Betsys MČR v online bleskovém šachu 2021"]
[Site "Chess.com"]
[Date "2021.04.17"]
[Round "4"]
[White "VOJTASEK2009"]
[Black "hvanacek"]
[Result "1-0"]
[WhiteElo "1282"]
[BlackElo "951"]
[TimeControl "180+1"]
[EndTime "9:35:14 PDT"]
[Termination "Uživatel VOJTASEK2009 zvítězil na čas"]

1. e4 {[%clk 0:03:00.9]} 1... e5 {[%clk 0:02:03.6]} 2. Nf3 {[%clk 0:02:58]} 2...
Nc6 {[%clk 0:02:01.1]} 3. Bc4 {[%clk 0:02:56.1]} 3... Nf6 {[%clk 0:01:55.4]} 4.
d3 {[%clk 0:02:54.6]} 4... Bb4+ {[%clk 0:01:48.2]} 5. c3 {[%clk 0:02:51.5]} 5...
Bd6 {[%clk 0:01:42.6]} 6. Bg5 {[%clk 0:02:49]} 6... h6 {[%clk 0:01:35.8]} 7. Bh4
{[%clk 0:02:47.2]} 7... O-O {[%clk 0:01:17.2]} 8. O-O {[%clk 0:02:44.7]} 8...
Bc5 {[%clk 0:00:46.7]} 9. Nbd2 {[%clk 0:02:39.7]} 9... d6 {[%clk 0:00:36.7]} 10.
h3 {[%clk 0:02:36.3]} 10... Be6 {[%clk 0:00:28.5]} 11. Bd5 {[%clk 0:02:34.3]}
11... Bxd5 {[%clk 0:00:27.7]} 12. exd5 {[%clk 0:02:31.8]} 12... Ne7 {[%clk
0:00:25.8]} 13. Ne4 {[%clk 0:02:24.3]} 13... Nxe4 {[%clk 0:00:23.1]} 14. dxe4
{[%clk 0:02:20.4]} 14... c6 {[%clk 0:00:13.4]} 15. dxc6 {[%clk 0:02:15.2]} 15...
bxc6 {[%clk 0:00:11.6]} 16. b4 {[%clk 0:02:11.8]} 16... Bb6 {[%clk 0:00:09.7]}
17. a4 {[%clk 0:02:07.2]} 17... Qe8 {[%clk 0:00:09.6]} 18. a5 {[%clk 0:02:06.4]}
18... Bc7 {[%clk 0:00:09.6]} 19. Bxe7 {[%clk 0:01:56.6]} 19... Qd8 {[%clk
0:00:10.5]} 20. Bxd8 {[%clk 0:01:55]} 20... Raxd8 {[%clk 0:00:06.9]} 21. Qa4
{[%clk 0:01:50.7]} 21... c5 {[%clk 0:00:03.7]} 22. bxc5 {[%clk 0:01:48.6]} 22...
dxc5 {[%clk 0:00:04.6]} 23. Qc6 {[%clk 0:01:46.5]} 23... Rc8 {[%clk 0:00:03.5]}
24. Qxc5 {[%clk 0:01:45.9]} 1-0

[Event "Betsys MČR v online bleskovém šachu 2021"]
[Site "Chess.com"]
[Date "2021.04.17"]
[Round "4"]
[White "adasmrazek"]
[Black "DavidZidlicky"]
[Result "0-1"]
[WhiteElo "1314"]
[BlackElo "1708"]
[TimeControl "180+1"]
[EndTime "9:35:21 PDT"]
[Termination "Uživatel DavidZidlicky zvítězil po vzdání soupeře"]

1. d4 {[%clk 0:02:44.2]} 1... d5 {[%clk 0:02:59.2]} 2. c4 {[%clk 0:02:44.2]}
2... dxc4 {[%clk 0:02:58.4]} 3. e4 {[%clk 0:02:43.3]} 3... Nf6 {[%clk 0:02:57]}
4. Nf3 {[%clk 0:02:43.1]} 4... Bg4 {[%clk 0:02:56.1]} 5. Nc3 {[%clk 0:02:42.2]}
5... e6 {[%clk 0:02:55.1]} 6. Be2 {[%clk 0:02:40.3]} 6... Bb4 {[%clk 0:02:51.4]}
7. O-O {[%clk 0:02:36.3]} 7... Nc6 {[%clk 0:02:48.9]} 8. a3 {[%clk 0:02:21.9]}
8... Bxc3 {[%clk 0:02:48]} 9. bxc3 {[%clk 0:02:22.8]} 9... Nxe4 {[%clk
0:02:43.7]} 10. Bb2 {[%clk 0:02:15.3]} 10... Nd6 {[%clk 0:02:33.8]} 11. Rb1
{[%clk 0:02:01.1]} 11... O-O {[%clk 0:02:31.5]} 12. Ba1 {[%clk 0:01:59.3]} 12...
b5 {[%clk 0:02:22.8]} 13. d5 {[%clk 0:01:56.5]} 13... Bxf3 {[%clk 0:02:11.2]}
14. Bxf3 {[%clk 0:01:50.5]} 14... Ne5 {[%clk 0:02:05]} 15. Re1 {[%clk
0:01:47.3]} 15... Nd3 {[%clk 0:01:58]} 16. Re3 {[%clk 0:01:31.6]} 16... exd5
{[%clk 0:01:43.8]} 17. Bxd5 {[%clk 0:01:30.6]} 17... Rb8 {[%clk 0:01:43.7]} 18.
Qe2 {[%clk 0:01:24.4]} 18... Nf5 {[%clk 0:01:35.6]} 19. Rf3 {[%clk 0:01:04.5]}
19... Qxd5 {[%clk 0:01:33.8]} 20. Rd1 {[%clk 0:00:51.1]} 20... Rfe8 {[%clk
0:01:30.1]} 21. Qc2 {[%clk 0:00:44.1]} 21... g6 {[%clk 0:01:25.3]} 22. Bb2
{[%clk 0:00:27.9]} 22... Re1+ {[%clk 0:01:21.1]} 23. Rxe1 {[%clk 0:00:27]} 23...
Nxe1 {[%clk 0:01:21.1]} 24. Rf4 {[%clk 0:00:24.4]} 24... Nxc2 {[%clk 0:01:20.5]}
0-1

[Event "Betsys MČR v online bleskovém šachu 2021"]
[Site "Chess.com"]
[Date "2021.04.17"]
[Round "4"]
[White "marecek1754"]
[Black "pburak"]
[Result "1-0"]
[WhiteElo "2184"]
[BlackElo "1136"]
[TimeControl "180+1"]
[EndTime "9:35:25 PDT"]
[Termination "Uživatel marecek1754 zvítězil po vzdání soupeře"]

1. e4 {[%clk 0:03:00.9]} 1... e5 {[%clk 0:02:58.5]} 2. Nf3 {[%clk 0:03:00.2]}
2... Nc6 {[%clk 0:02:57.7]} 3. Bc4 {[%clk 0:02:59.8]} 3... Bc5 {[%clk
0:02:56.3]} 4. O-O {[%clk 0:00:45.4]} 4... Nf6 {[%clk 0:02:52.3]} 5. d4 {[%clk
0:00:44.9]} 5... exd4 {[%clk 0:02:44.9]} 6. e5 {[%clk 0:00:45]} 6... Ng8 {[%clk
0:02:32.9]} 7. Ng5 {[%clk 0:00:42.6]} 7... d5 {[%clk 0:02:01.9]} 8. exd6 {[%clk
0:00:40.1]} 8... Qxd6 {[%clk 0:01:54.3]} 9. Nxf7 {[%clk 0:00:39.9]} 9... Qg6
{[%clk 0:01:43]} 10. Nxh8 {[%clk 0:00:35.9]} 10... Qf6 {[%clk 0:01:31.8]} 11.
Bxg8 {[%clk 0:00:33.4]} 11... Bf5 {[%clk 0:01:14.4]} 12. Re1+ {[%clk 0:00:30.4]}
12... Kd7 {[%clk 0:01:11.2]} 13. Bd5 {[%clk 0:00:27.3]} 13... Rxh8 {[%clk
0:01:07.5]} 14. Bxc6+ {[%clk 0:00:27.6]} 14... bxc6 {[%clk 0:01:06.2]} 15. Nd2
{[%clk 0:00:27.4]} 15... Qg6 {[%clk 0:01:02.9]} 16. Nc4 {[%clk 0:00:26.5]} 16...
Bh3 {[%clk 0:00:59]} 17. Ne5+ {[%clk 0:00:26.3]} 17... Kd6 {[%clk 0:00:55.9]}
18. Nxg6 {[%clk 0:00:27.2]} 1-0

[Event "Betsys MČR v online bleskovém šachu 2021"]
[Site "Chess.com"]
[Date "2021.04.17"]
[Round "4"]
[White "sharpi5135"]
[Black "Maty122"]
[Result "0-1"]
[WhiteElo "777"]
[BlackElo "1175"]
[TimeControl "180+1"]
[EndTime "9:35:27 PDT"]
[Termination "Uživatel Maty122 zvítězil na čas"]

1. e4 {[%clk 0:02:55.4]} 1... e5 {[%clk 0:03:00.4]} 2. Bc4 {[%clk 0:02:53.8]}
2... Nf6 {[%clk 0:02:59.6]} 3. Nc3 {[%clk 0:02:51]} 3... Nc6 {[%clk 0:02:59.5]}
4. Nf3 {[%clk 0:02:47.3]} 4... Nxe4 {[%clk 0:02:51]} 5. Nxe4 {[%clk 0:02:40.1]}
5... d5 {[%clk 0:02:51.2]} 6. Bxd5 {[%clk 0:02:25.9]} 6... Qxd5 {[%clk
0:02:50.4]} 7. Nfg5 {[%clk 0:02:21.2]} 7... h6 {[%clk 0:02:42.5]} 8. Nxf7 {[%clk
0:02:15.6]} 8... Qxf7 {[%clk 0:02:36.5]} 9. d3 {[%clk 0:02:04]} 9... Bf5 {[%clk
0:02:29.6]} 10. Qe2 {[%clk 0:01:55]} 10... Bd6 {[%clk 0:02:26.7]} 11. O-O {[%clk
0:01:52.4]} 11... O-O-O {[%clk 0:02:25.1]} 12. Nxd6+ {[%clk 0:01:49.3]} 12...
cxd6 {[%clk 0:02:23.3]} 13. c4 {[%clk 0:01:36.9]} 13... g5 {[%clk 0:02:20.4]}
14. f3 {[%clk 0:01:30.3]} 14... h5 {[%clk 0:02:18.1]} 15. Bxg5 {[%clk
0:01:26.3]} 15... Nd4 {[%clk 0:02:14.7]} 16. Qd2 {[%clk 0:01:16.4]} 16... Rdg8
{[%clk 0:02:14.9]} 17. Qc1 {[%clk 0:00:53.7]} 17... Ne2+ {[%clk 0:02:11.5]} 18.
Kh1 {[%clk 0:00:42.3]} 18... Nxc1 {[%clk 0:02:12.4]} 19. Raxc1 {[%clk
0:00:39.9]} 19... Rxg5 {[%clk 0:02:10.9]} 20. f4 {[%clk 0:00:37.6]} 20... Rg4
{[%clk 0:01:57.5]} 21. fxe5 {[%clk 0:00:31.2]} 21... dxe5 {[%clk 0:01:57.6]} 22.
c5 {[%clk 0:00:24.8]} 22... Rhg8 {[%clk 0:01:57]} 23. h3 {[%clk 0:00:19.5]}
23... Rxg2 {[%clk 0:01:55.2]} 24. Rg1 {[%clk 0:00:13.9]} 24... Bxh3 {[%clk
0:01:48.4]} 25. c6 {[%clk 0:00:04.8]} 25... Rxg1+ {[%clk 0:01:46]} 26. Rxg1
{[%clk 0:00:02.4]} 26... Rxg1+ {[%clk 0:01:42.2]} 27. Kxg1 {[%clk 0:00:01.1]}
27... Qf1+ {[%clk 0:01:43.1]} 0-1

[Event "Betsys MČR v online bleskovém šachu 2021"]
[Site "Chess.com"]
[Date "2021.04.17"]
[Round "4"]
[White "fadamos"]
[Black "Bancroft"]
[Result "1-0"]
[WhiteElo "2257"]
[BlackElo "1939"]
[TimeControl "180+1"]
[EndTime "9:35:28 PDT"]
[Termination "Uživatel fadamos zvítězil po vzdání soupeře"]

1. e4 {[%clk 0:03:00.9]} 1... c5 {[%clk 0:02:58.7]} 2. Nf3 {[%clk 0:03:00.8]}
2... d6 {[%clk 0:02:58.6]} 3. d4 {[%clk 0:03:00.9]} 3... cxd4 {[%clk 0:02:59.2]}
4. Nxd4 {[%clk 0:03:01.6]} 4... Nf6 {[%clk 0:02:59.8]} 5. Nc3 {[%clk 0:03:02.1]}
5... g6 {[%clk 0:03:00.5]} 6. Be2 {[%clk 0:03:01.8]} 6... Bg7 {[%clk 0:03:00.4]}
7. O-O {[%clk 0:03:02.5]} 7... O-O {[%clk 0:03:00.5]} 8. Bg5 {[%clk 0:03:03]}
8... Nc6 {[%clk 0:02:57]} 9. Nb3 {[%clk 0:03:03.2]} 9... a5 {[%clk 0:02:50.4]}
10. a4 {[%clk 0:03:02.8]} 10... Be6 {[%clk 0:02:49.2]} 11. Kh1 {[%clk
0:03:01.7]} 11... h6 {[%clk 0:02:40.2]} 12. Bh4 {[%clk 0:02:54.2]} 12... Ne5
{[%clk 0:02:23]} 13. Nd4 {[%clk 0:02:44.3]} 13... Bc4 {[%clk 0:02:09.5]} 14. f4
{[%clk 0:02:44.1]} 14... Bxe2 {[%clk 0:02:09]} 15. Qxe2 {[%clk 0:02:44.3]} 15...
Nc6 {[%clk 0:02:07.9]} 16. Ndb5 {[%clk 0:02:37.7]} 16... Rc8 {[%clk 0:01:59.4]}
17. Rad1 {[%clk 0:02:35.4]} 17... Qb6 {[%clk 0:01:45.3]} 18. e5 {[%clk
0:02:26.7]} 18... dxe5 {[%clk 0:01:37.3]} 19. fxe5 {[%clk 0:02:27]} 19... Nh5
{[%clk 0:01:33.1]} 20. Nd5 {[%clk 0:02:26.7]} 20... Qc5 {[%clk 0:01:15.6]} 21.
Bf2 {[%clk 0:02:05.5]} 21... Nf4 {[%clk 0:00:53.3]} 22. Nxf4 {[%clk 0:02:04.7]}
22... Qxe5 {[%clk 0:00:52.9]} 23. Qxe5 {[%clk 0:02:00.4]} 23... Bxe5 {[%clk
0:00:52.3]} 24. Nd3 {[%clk 0:02:01]} 24... Bb8 {[%clk 0:00:46.7]} 25. Rfe1
{[%clk 0:01:57.4]} 25... e5 {[%clk 0:00:42.6]} 26. Bc5 {[%clk 0:01:56.2]} 26...
Rfe8 {[%clk 0:00:42]} 27. Nd6 {[%clk 0:01:55.8]} 27... Bxd6 {[%clk 0:00:41.4]}
28. Bxd6 {[%clk 0:01:56.7]} 28... e4 {[%clk 0:00:36.2]} 29. Nc5 {[%clk 0:01:57]}
29... b6 {[%clk 0:00:32.1]} 30. Nxe4 {[%clk 0:01:56.5]} 30... Kg7 {[%clk
0:00:27.2]} 31. Ba3 {[%clk 0:01:43.4]} 31... Ne5 {[%clk 0:00:20.6]} 32. Nd6
{[%clk 0:01:37.4]} 1-0

[Event "Betsys MČR v online bleskovém šachu 2021"]
[Site "Chess.com"]
[Date "2021.04.17"]
[Round "4"]
[White "121pepa"]
[Black "Lisak007"]
[Result "0-1"]
[WhiteElo "1415"]
[BlackElo "1783"]
[TimeControl "180+1"]
[EndTime "9:35:28 PDT"]
[Termination "Uživatel Lisak007 zvítězil po vzdání soupeře"]

1. d4 {[%clk 0:03:00.9]} 1... Nf6 {[%clk 0:02:58.9]} 2. c4 {[%clk 0:02:59.5]}
2... d6 {[%clk 0:02:59.1]} 3. Nc3 {[%clk 0:02:52.7]} 3... g6 {[%clk 0:02:59.1]}
4. Nf3 {[%clk 0:02:50.3]} 4... Bg7 {[%clk 0:02:59.1]} 5. e3 {[%clk 0:02:49.5]}
5... O-O {[%clk 0:02:59]} 6. Bd2 {[%clk 0:02:48.8]} 6... Nbd7 {[%clk 0:02:59.1]}
7. Bd3 {[%clk 0:02:47.8]} 7... e5 {[%clk 0:02:59.2]} 8. dxe5 {[%clk 0:02:41.3]}
8... Nxe5 {[%clk 0:02:58.6]} 9. Nxe5 {[%clk 0:02:39.8]} 9... dxe5 {[%clk
0:02:58.7]} 10. Bc2 {[%clk 0:02:38.6]} 10... c6 {[%clk 0:02:58.7]} 11. O-O
{[%clk 0:02:37.7]} 11... Qe7 {[%clk 0:02:55.5]} 12. Ne4 {[%clk 0:02:35.9]} 12...
Nxe4 {[%clk 0:02:53.5]} 13. Bxe4 {[%clk 0:02:34.2]} 13... f5 {[%clk 0:02:53.5]}
14. Bc2 {[%clk 0:02:32.7]} 14... f4 {[%clk 0:02:47.9]} 15. e4 {[%clk 0:02:23.3]}
15... f3 {[%clk 0:02:46.3]} 16. g3 {[%clk 0:02:08.8]} 16... Bh3 {[%clk
0:02:45.1]} 17. Re1 {[%clk 0:02:07.5]} 17... Rad8 {[%clk 0:02:38.8]} 18. Qc1
{[%clk 0:02:03.8]} 18... Rd7 {[%clk 0:02:25.4]} 19. a3 {[%clk 0:01:51]} 19...
Qe6 {[%clk 0:02:24.6]} 20. c5 {[%clk 0:01:44.9]} 20... Bf1 {[%clk 0:02:07.2]}
21. Bb3 {[%clk 0:01:24.4]} 21... Qxb3 {[%clk 0:01:59.5]} 22. Kxf1 {[%clk
0:01:22.7]} 22... Qe6 {[%clk 0:01:55.5]} 23. Re3 {[%clk 0:00:46.3]} 23... Qh3+
{[%clk 0:01:52.9]} 24. Ke1 {[%clk 0:00:43.7]} 24... Qxh2 {[%clk 0:01:49.9]} 25.
Kd1 {[%clk 0:00:42.6]} 25... Qxf2 {[%clk 0:01:47.9]} 26. Kc2 {[%clk 0:00:38.3]}
26... Bh6 {[%clk 0:01:37.2]} 27. Rd3 {[%clk 0:00:20.9]} 27... Rxd3 {[%clk
0:01:35.7]} 28. Kxd3 {[%clk 0:00:19.9]} 28... Rd8+ {[%clk 0:01:35.6]} 29. Kc3
{[%clk 0:00:19.2]} 29... Bxd2+ {[%clk 0:01:34.5]} 30. Kc2 {[%clk 0:00:18.8]}
30... Bxc1+ {[%clk 0:01:33.8]} 0-1

[Event "Betsys MČR v online bleskovém šachu 2021"]
[Site "Chess.com"]
[Date "2021.04.17"]
[Round "4"]
[White "indebol"]
[Black "Bartusman"]
[Result "0-1"]
[WhiteElo "1544"]
[BlackElo "1968"]
[TimeControl "180+1"]
[EndTime "9:35:31 PDT"]
[Termination "Uživatel Bartusman zvítězil matem"]

1. e4 {[%clk 0:02:26.8]} 1... c5 {[%clk 0:02:59.8]} 2. Nf3 {[%clk 0:02:26.2]}
2... g6 {[%clk 0:03:00.2]} 3. c3 {[%clk 0:02:25.2]} 3... Bg7 {[%clk 0:02:59.6]}
4. Bc4 {[%clk 0:02:25]} 4... d6 {[%clk 0:02:56.1]} 5. O-O {[%clk 0:02:24.5]}
5... Nf6 {[%clk 0:02:56.3]} 6. Re1 {[%clk 0:02:22.7]} 6... O-O {[%clk
0:02:55.9]} 7. d4 {[%clk 0:02:22.2]} 7... cxd4 {[%clk 0:02:55.6]} 8. Nxd4 {[%clk
0:02:19.3]} 8... Nc6 {[%clk 0:02:51]} 9. Nf3 {[%clk 0:02:14.6]} 9... a6 {[%clk
0:02:39.8]} 10. a4 {[%clk 0:02:03.3]} 10... Nd7 {[%clk 0:02:35.2]} 11. Be3
{[%clk 0:01:48]} 11... Nde5 {[%clk 0:02:33.2]} 12. Nxe5 {[%clk 0:01:45.6]} 12...
Nxe5 {[%clk 0:02:33.2]} 13. Bb3 {[%clk 0:01:44.6]} 13... Bd7 {[%clk 0:02:32.7]}
14. f4 {[%clk 0:01:41.5]} 14... Ng4 {[%clk 0:02:32.7]} 15. Qf3 {[%clk
0:01:34.3]} 15... Nxe3 {[%clk 0:02:32.1]} 16. Qxe3 {[%clk 0:01:32.2]} 16... Qc7
{[%clk 0:02:27.4]} 17. Nd2 {[%clk 0:01:26.9]} 17... b5 {[%clk 0:02:27.1]} 18.
Bd5 {[%clk 0:01:06.5]} 18... Rac8 {[%clk 0:02:21.4]} 19. axb5 {[%clk 0:01:05.2]}
19... axb5 {[%clk 0:02:21.7]} 20. Ra7 {[%clk 0:00:51]} 20... Qd8 {[%clk
0:02:21.9]} 21. Nb3 {[%clk 0:00:43.7]} 21... b4 {[%clk 0:02:17.7]} 22. Nd4
{[%clk 0:00:39.8]} 22... bxc3 {[%clk 0:02:15.8]} 23. bxc3 {[%clk 0:00:40.7]}
23... Qb6 {[%clk 0:01:35.8]} 24. Rea1 {[%clk 0:00:37.9]} 24... Rxc3 {[%clk
0:01:30.7]} 25. R7a4 {[%clk 0:00:20.9]} 25... Rxe3 {[%clk 0:01:29.1]} 26. Kh1
{[%clk 0:00:16.7]} 26... Bxa4 {[%clk 0:01:28.5]} 27. Rxa4 {[%clk 0:00:14.5]}
27... Re1# {[%clk 0:01:28.2]} 0-1

[Event "Betsys MČR v online bleskovém šachu 2021"]
[Site "Chess.com"]
[Date "2021.04.17"]
[Round "4"]
[White "clarissamcclellan"]
[Black "Marcus_Aurelius_CZ"]
[Result "0-1"]
[WhiteElo "1875"]
[BlackElo "1409"]
[TimeControl "180+1"]
[EndTime "9:35:32 PDT"]
[Termination "Uživatel Marcus_Aurelius_CZ zvítězil po vzdání soupeře"]

1. d4 {[%clk 0:02:54.7]} 1... e5 {[%clk 0:02:59.2]} 2. c4 {[%clk 0:02:53.6]}
2... Nc6 {[%clk 0:02:56.5]} 3. d5 {[%clk 0:02:52.4]} 3... Nd4 {[%clk 0:02:56.1]}
4. e3 {[%clk 0:02:50.8]} 4... Nf5 {[%clk 0:02:54.2]} 5. e4 {[%clk 0:02:42.9]}
5... Nd4 {[%clk 0:02:53.4]} 6. Ne2 {[%clk 0:02:41.1]} 6... Nxe2 {[%clk 0:02:50]}
7. Bxe2 {[%clk 0:02:40.8]} 7... Bb4+ {[%clk 0:02:47.6]} 8. Bd2 {[%clk
0:02:38.3]} 8... Bxd2+ {[%clk 0:02:46.8]} 9. Nxd2 {[%clk 0:02:38.7]} 9... d6
{[%clk 0:02:45.2]} 10. O-O {[%clk 0:02:35]} 10... Nf6 {[%clk 0:02:44.4]} 11. f4
{[%clk 0:02:31.9]} 11... Qe7 {[%clk 0:02:34.1]} 12. f5 {[%clk 0:02:29.3]} 12...
b6 {[%clk 0:02:30.4]} 13. b4 {[%clk 0:02:23.9]} 13... g6 {[%clk 0:02:22.9]} 14.
fxg6 {[%clk 0:02:12.6]} 14... hxg6 {[%clk 0:02:17.4]} 15. Rc1 {[%clk 0:02:08.7]}
15... Nh5 {[%clk 0:02:15.6]} 16. Bg4 {[%clk 0:01:58.1]} 16... Bxg4 {[%clk
0:02:04.9]} 17. Qxg4 {[%clk 0:01:57.2]} 17... Nf4 {[%clk 0:02:03.8]} 18. Rc3
{[%clk 0:01:34.8]} 18... Rh4 {[%clk 0:02:00.1]} 19. Qd1 {[%clk 0:01:30.9]} 19...
O-O-O {[%clk 0:01:36.5]} 20. Nf3 {[%clk 0:01:03.4]} 20... Rhh8 {[%clk
0:01:26.3]} 21. c5 {[%clk 0:00:56.3]} 21... dxc5 {[%clk 0:01:16.7]} 22. bxc5
{[%clk 0:00:57.2]} 22... Kb7 {[%clk 0:01:04.1]} 23. c6+ {[%clk 0:00:53.8]} 23...
Kb8 {[%clk 0:00:57.3]} 24. Ra3 {[%clk 0:00:50.3]} 24... Qxa3 {[%clk 0:00:50.6]}
0-1

[Event "Betsys MČR v online bleskovém šachu 2021"]
[Site "Chess.com"]
[Date "2021.04.17"]
[Round "4"]
[White "Jakuboss22005"]
[Black "Paulz64"]
[Result "1/2-1/2"]
[WhiteElo "2066"]
[BlackElo "2492"]
[TimeControl "180+1"]
[EndTime "9:35:35 PDT"]
[Termination "Remíza dohodou"]

1. b3 {[%clk 0:02:57.2]} 1... d5 {[%clk 0:02:58.9]} 2. Bb2 {[%clk 0:02:57.7]}
2... Nf6 {[%clk 0:02:59.1]} 3. Nf3 {[%clk 0:02:56.6]} 3... Bg4 {[%clk
0:02:58.8]} 4. Ne5 {[%clk 0:02:56]} 4... Bh5 {[%clk 0:02:58.3]} 5. g3 {[%clk
0:02:54.8]} 5... e6 {[%clk 0:02:56.5]} 6. Bg2 {[%clk 0:02:54.7]} 6... Be7 {[%clk
0:02:54.6]} 7. O-O {[%clk 0:02:54.1]} 7... O-O {[%clk 0:02:54.5]} 8. c4 {[%clk
0:02:54.1]} 8... c6 {[%clk 0:02:53.8]} 9. d3 {[%clk 0:02:46.7]} 9... Nbd7 {[%clk
0:02:53.8]} 10. Nd2 {[%clk 0:02:43.8]} 10... a5 {[%clk 0:02:48.4]} 11. a3 {[%clk
0:02:43.3]} 11... Bd6 {[%clk 0:02:46.5]} 12. Nxd7 {[%clk 0:02:38.1]} 12... Nxd7
{[%clk 0:02:45.6]} 13. Re1 {[%clk 0:02:35.8]} 13... Qe7 {[%clk 0:02:32.7]} 14.
Nf3 {[%clk 0:02:32.1]} 14... e5 {[%clk 0:02:26.5]} 15. cxd5 {[%clk 0:02:31.6]}
15... cxd5 {[%clk 0:02:25.1]} 16. Nh4 {[%clk 0:02:31.7]} 16... Qe6 {[%clk
0:02:20.1]} 17. Qd2 {[%clk 0:02:20.1]} 17... Nc5 {[%clk 0:02:15.9]} 18. Qg5
{[%clk 0:02:03.2]} 18... Bg6 {[%clk 0:02:04.1]} 19. Nxg6 {[%clk 0:02:02.9]}
19... hxg6 {[%clk 0:02:04.8]} 20. Rab1 {[%clk 0:01:36]} 20... Rac8 {[%clk
0:01:34.6]} 21. d4 {[%clk 0:01:31.6]} 21... Nxb3 {[%clk 0:01:16.4]} 22. dxe5
{[%clk 0:01:30.2]} 22... Be7 {[%clk 0:01:12.8]} 23. Qe3 {[%clk 0:01:20.6]} 23...
a4 {[%clk 0:01:07.2]} 24. Red1 {[%clk 0:01:11.2]} 24... Rfd8 {[%clk 0:01:06.8]}
25. h4 {[%clk 0:00:58]} 25... b5 {[%clk 0:01:06.5]} 26. Kh2 {[%clk 0:00:54.1]}
26... Bc5 {[%clk 0:01:03.5]} 27. Qf3 {[%clk 0:00:45.1]} 27... d4 {[%clk
0:01:03.7]} 28. Bh3 {[%clk 0:00:43.5]} 28... Qxe5 {[%clk 0:01:00.7]} 29. Bxc8
{[%clk 0:00:43.2]} 29... Rxc8 {[%clk 0:01:01]} 30. e3 {[%clk 0:00:41.8]} 1/2-1/2